fUST/lending_fUST_20240704
["ID","MTS","AMOUNT","RATE_DAILY","PERIOD"]
[331063218,1720051855128,-500.0,0.00014448,2]
[331063219,1720051855137,-500.0,0.00014448,2]
[331063220,1720051855147,-500.0,0.00014448,2]
[331063221,1720051855157,-500.0,0.00014448,2]
[331063222,1720051855167,-500.0,0.00014448,2]
[331063223,1720051855176,-257.225797,0.00014448,2]
[331063224,1720051855186,-257.225797,0.00014448,2]
[331063225,1720051855195,-257.225797,0.00014448,2]
[331063226,1720051855205,-500.0,0.00014448,2]
[331063227,1720051855214,-257.225797,0.00014448,2]
[331063228,1720051855224,-257.225797,0.00014448,2]
[331063229,1720051855233,-257.225797,0.00014448,2]
[331063230,1720051855242,-257.225797,0.00014448,2]
[331063231,1720051855252,-257.225797,0.00014448,2]
[331063232,1720051855262,-257.225797,0.00014448,2]
[331063233,1720051855271,-500.0,0.00014448,2]
[331063234,1720051855280,-257.225797,0.00014448,2]
[331063235,1720051855289,-257.225797,0.00014448,2]
[331063236,1720051855298,-257.225797,0.00014448,2]
[331063237,1720051855307,-257.225797,0.00014448,2]
[331063238,1720051855317,-257.225797,0.00014448,2]
[331063239,1720051855326,-257.225797,0.00014448,2]
[331063240,1720051855335,-257.225797,0.00014448,2]
[331063241,1720051855345,-257.225797,0.00014448,2]
[331063242,1720051855354,-257.225801,0.00014448,2]
[331063243,1720051855363,-500.0,0.00014448,2]
[331063244,1720051855372,-151.0,0.00014448,2]
[331063245,1720051855380,-254.608869,0.00014448,2]
[331063246,1720051855390,-500.0,0.00014448,2]
[331063247,1720051855399,-500.0,0.00014448,2]
[331063248,1720051855408,-500.0,0.00014448,2]
[331063249,1720051855417,-500.0,0.00014448,2]
[331063250,1720051855427,-500.0,0.00014448,2]
[331063251,1720051855435,-500.0,0.00014448,2]
[331063252,1720051855444,-500.0,0.00014448,2]
[331063253,1720051855454,-500.0,0.00014448,2]
[331063254,1720051855463,-500.0,0.00014448,2]
[331063255,1720051855472,-500.0,0.00014448,2]
[331063256,1720051855481,-244.28139275,0.00014448,2]
[331063257,1720051855491,-501.5057069,0.00014448,2]
[331063258,1720051855500,-500.0,0.00014448,2]
[331063259,1720051855510,-500.0,0.00014448,2]
[331063260,1720051855519,-595.42140201,0.00014448,2]
[331063261,1720051855528,-500.0,0.00014448,2]
[331063262,1720051855537,-500.0,0.00014448,2]
[331063263,1720051855547,-500.0,0.00014448,2]
[331063264,1720051855556,-500.0,0.00014448,2]
[331063265,1720051855566,-500.0,0.00014448,2]
[331063266,1720051855575,-500.0,0.00014448,2]
[331063267,1720051855585,-500.0,0.00014448,2]
[331063268,1720051855594,-500.0,0.00014448,2]
[331063269,1720051855604,-151.0,0.00014448,2]
[331063270,1720051855615,-500.0,0.00014448,2]
[331063271,1720051855624,-151.0,0.00014448,2]
[331063272,1720051855633,-173.781659,0.00014448,2]
[331063273,1720051855643,-500.0,0.00014448,2]
[331063274,1720051855652,-500.0,0.00014448,2]
[331063275,1720051855662,-500.0,0.00014448,2]
[331063276,1720051855672,-500.0,0.00014448,2]
[331063277,1720051855683,-500.0,0.00014448,2]
[331063278,1720051855694,-500.0,0.00014448,2]
[331063279,1720051855703,-500.0,0.00014448,2]
[331063280,1720051855712,-500.0,0.00014448,2]
[331063281,1720051855725,-505.30757377,0.00014448,2]
[331063282,1720051855734,-500.0,0.00014448,2]
[331063283,1720051855743,-500.0,0.00014448,2]
[331063284,1720051855753,-500.0,0.00014448,2]
[331063285,1720051855762,-500.0,0.00014448,2]
[331063286,1720051855771,-500.0,0.00014448,2]
[331063287,1720051855782,-500.0,0.00014448,2]
[331063288,1720051855794,-500.0,0.00014448,2]
[331063289,1720051855806,-500.0,0.00014448,2]
[331063290,1720051855816,-500.0,0.00014448,2]
[331063291,1720051855827,-500.0,0.00014448,2]
[331063292,1720051855837,-622.30581662,0.00014448,2]
[331063293,1720051855848,-500.0,0.00014448,2]
[331063294,1720051855859,-500.0,0.00014448,2]
[331063295,1720051855869,-500.0,0.00014448,2]
[331063296,1720051855879,-616.9448563,0.00014448,2]
[331063297,1720051855889,-500.0,0.00014448,2]
[331063298,1720051855898,-500.0,0.00014448,2]
[331063299,1720051855907,-500.0,0.00014448,2]
[331063300,1720051855916,-500.0,0.00014448,2]
[331063301,1720051855925,-500.0,0.00014448,2]
[331063302,1720051855934,-500.0,0.00014448,2]
[331063303,1720051855943,-500.0,0.00014448,2]
[331063304,1720051855952,-154.81422293,0.00014448,2]
[331063305,1720051855961,-500.0,0.00014448,2]
[331063306,1720051855970,-689.94,0.00014448,2]
[331063307,1720051855979,-500.0,0.00014448,2]
[331063308,1720051855988,-500.0,0.00014448,2]
[331063309,1720051855997,-500.0,0.00014448,2]
[331063310,1720051856007,-500.0,0.00014448,2]
[331063311,1720051856016,-499.63941061,0.00014448,2]
[331063312,1720051856025,-500.0,0.00014448,2]
[331063313,1720051856038,-500.0,0.00014448,2]
[331063314,1720051856049,-510.57040703,0.00014448,2]
[331063315,1720051856058,-502.64590725,0.00014448,2]
[331063316,1720051856067,-500.76764455,0.00014448,2]
[331063317,1720051856076,-500.0,0.00014448,2]
[331063318,1720051856085,-500.0,0.00014448,2]
[331063319,1720051856094,-500.0,0.00014448,2]
[331063320,1720051856103,-500.0,0.00014448,2]
[331063321,1720051856112,-500.0,0.00014448,2]
[331063322,1720051856122,-500.0,0.00014448,2]
[331063323,1720051856131,-500.0,0.00014448,2]
[331063324,1720051856140,-500.0,0.00014448,2]
[331063325,1720051856150,-500.0,0.00014448,2]
[331063326,1720051856159,-500.0,0.00014448,2]
[331063327,1720051856168,-500.0,0.00014448,2]
[331063328,1720051856177,-500.0,0.00014448,2]
[331063329,1720051856186,-500.0,0.00014448,2]
[331063330,1720051856196,-500.0,0.00014448,2]
[331063331,1720051856206,-508.52011009,0.00014448,2]
[331063332,1720051856217,-500.0,0.00014448,2]
[331063333,1720051856226,-500.0,0.00014448,2]
[331063334,1720051856247,-597.85990971,0.00014448,2]
[331063335,1720051856259,-500.0,0.00014448,2]
[331063336,1720051856269,-172.16827798,0.00014448,2]
[331063337,1720051856279,-500.0,0.00014448,2]
[331063338,1720051856288,-500.37950443,0.00014448,2]
[331063339,1720051856433,-500.0,0.00014448,2]
[331063340,1720051856443,-737.1,0.00014448,2]
[331063341,1720051856452,-500.0,0.00014448,2]
[331063342,1720051856460,-193.0862847,0.00014448,2]
[331063343,1720051856470,-500.0,0.00014448,2]
[331063344,1720051856479,-500.0,0.00014448,2]
[331063345,1720051856487,-500.0,0.00014448,2]
[331063346,1720051856496,-500.0,0.00014448,2]
[331063347,1720051856506,-500.0,0.00014448,2]
[331063348,1720051856516,-500.0,0.00014448,2]
[331063349,1720051856525,-636.87,0.00014448,2]
[331063350,1720051856534,-500.65066791,0.00014448,2]
[331063351,1720051856543,-500.0,0.00014448,2]
[331063352,1720051856552,-500.0,0.00014448,2]
[331063353,1720051856561,-500.0,0.00014448,2]
[331063354,1720051856570,-500.0,0.00014448,2]
[331063355,1720051856579,-446.89698853,0.00014448,2]
[331063356,1720051856588,-500.0,0.00014448,2]
[331063357,1720051856596,-500.0,0.00014448,2]
[331063358,1720051856605,-500.0,0.00014448,2]
[331063359,1720051856616,-500.0,0.00014448,2]
[331063360,1720051856624,-500.0,0.00014448,2]
[331063361,1720051856634,-506.37827963,0.00014448,2]
[331063362,1720051856643,-443.36867269,0.00014448,2]
[331063363,1720051856652,-500.0,0.00014448,2]
[331063364,1720051856661,-500.0,0.00014448,2]
[331063365,1720051856670,-501.12506946,0.00014448,2]
[331063366,1720051856679,-500.0,0.00014448,2]
[331063367,1720051856688,-500.0,0.00014448,2]
[331063368,1720051856697,-500.0,0.00014448,2]
[331063369,1720051856706,-500.0,0.00014448,2]
[331063370,1720051856715,-500.0,0.00014448,2]
[331063371,1720051856727,-504.88581085,0.00014448,2]
[331063372,1720051856735,-500.0,0.00014448,2]
[331063373,1720051856744,-500.0,0.00014448,2]
[331063374,1720051856754,-500.0,0.00014448,2]
[331063375,1720051856764,-500.0,0.00014448,2]
[331063376,1720051856774,-554.1,0.00014448,2]
[331063377,1720051856783,-500.0,0.00014448,2]
[331063378,1720051856792,-500.0,0.00014448,2]
[331063379,1720051856802,-500.0,0.00014448,2]
[331063380,1720051856811,-500.0,0.00014448,2]
[331063381,1720051856820,-500.0,0.00014448,2]
[331063382,1720051856829,-500.0,0.00014448,2]
[331063383,1720051856838,-500.0,0.00014448,2]
[331063384,1720051856847,-500.0,0.00014448,2]
[331063385,1720051856856,-500.0,0.00014448,2]
[331063386,1720051856865,-596.31,0.00014448,2]
[331063387,1720051856873,-500.0,0.00014448,2]
[331063388,1720051856882,-500.0,0.00014448,2]
[331063389,1720051856891,-500.0,0.00014448,2]
[331063390,1720051856900,-603.78,0.00014448,2]
[331063391,1720051856909,-500.0,0.00014448,2]
[331063392,1720051856918,-516.76,0.00014448,2]
[331063393,1720051856927,-669.18,0.00014448,2]
[331063394,1720051856936,-500.0,0.00014448,2]
[331063395,1720051856945,-500.49014017,0.00014448,2]
[331063396,1720051856954,-500.0,0.00014448,2]
[331063397,1720051856963,-8775.43,0.00014448,2]
[331063398,1720051856972,-500.0,0.00014448,2]
[331063399,1720051856981,-500.0,0.00014448,2]
[331063400,1720051856990,-500.0,0.00014448,2]
[331063401,1720051856999,-500.0,0.00014448,2]
[331063402,1720051857009,-500.0,0.00014448,2]
[331063403,1720051857018,-500.0,0.00014448,2]
[331063404,1720051857027,-502.41113733,0.00014448,2]
[331063405,1720051857035,-696.27,0.00014448,2]
[331063406,1720051857044,-500.0,0.00014448,2]
[331063407,1720051857053,-500.0,0.00014456,2]
[331063408,1720051857063,-2747.16,0.00014456,2]
[331063409,1720051857072,-2747.16,0.00014456,2]
[331063410,1720051857081,-2747.16,0.00014456,2]
[331063411,1720051857091,-2747.16,0.00014456,2]
[331063412,1720051857100,-2747.29799061,0.00014456,2]
[331063413,1720051857109,-500.0,0.00014457,2]
[331063414,1720051857118,-500.0,0.00014457,2]
[331063415,1720051857127,-500.0,0.00014457,2]
[331063416,1720051857136,-500.0,0.00014457,2]
[331063417,1720051857145,-2189.81,0.00014457,2]
[331063418,1720051857154,-1032.4,0.00014457,2]
[331063419,1720051857163,-5376.52,0.00014457,2]
[331063420,1720051857172,-500.0,0.00014457,2]
[331063421,1720051857181,-500.0,0.00014457,2]
[331063422,1720051857191,-385.30665361,0.00014457,2]
[331063423,1720051857200,-606.77,0.00014457,2]
[331063424,1720051857209,-1016.83,0.00014457,2]
[331063425,1720051857218,-505.82315576,0.00014458,2]
[331063426,1720051857227,-1112.26,0.00014459,2]
[331063427,1720051857236,-500.0,0.00014459,2]
[331063428,1720051857245,-6348.03,0.00014459,2]
[331063429,1720051857254,-2828.54,0.00014459,2]
[331063430,1720051857264,-186.21,0.00014533,2]
[331063431,1720051857273,-155.0,0.0001458,2]
[331063432,1720051857282,-153.0,0.000146,2]
[331063433,1720051857291,-312.1291059,0.000146,2]
[331063434,1720051857300,-306.7754931,0.000146,2]
[331063435,1720051857310,-153.0,0.000146,2]
[331063436,1720051857319,-206.0836831,0.000146,2]
[331063437,1720051857328,-153.0,0.000146,2]
[331063438,1720051857337,-153.0,0.000146,2]
[331063439,1720051857347,-206.0836831,0.000146,2]
[331063440,1720051857356,-153.0,0.000146,2]
[331063441,1720051857364,-206.0836831,0.000146,2]
[331063442,1720051857373,-414.8330908,0.000146,2]
[331063443,1720051857382,-206.0836831,0.000146,2]
[331063444,1720051857391,-206.0836831,0.000146,2]
[331063445,1720051857400,-206.0836831,0.000146,2]
[331063446,1720051857409,-206.0836831,0.000146,2]
[331063447,1720051857418,-206.0836831,0.000146,2]
[331063448,1720051857426,-206.0836831,0.000146,2]
[331063449,1720051857435,-206.0836831,0.000146,2]
[331063450,1720051857444,-209.5587121,0.000146,2]
[331063451,1720051857453,-153.0,0.000146,2]
[331063452,1720051857462,-153.0,0.000146,2]
[331063453,1720051857470,-153.0,0.000146,2]
[331063454,1720051857480,-153.0,0.000146,2]
[331063455,1720051857489,-153.0,0.000146,2]
[331063456,1720051857498,-153.0,0.000146,2]
[331063457,1720051857508,-153.0,0.000146,2]
[331063458,1720051857518,-153.0,0.000146,2]
[331063459,1720051857527,-153.0,0.000146,2]
[331063460,1720051857536,-153.0,0.000146,2]
[331063461,1720051857546,-153.0,0.000146,2]
[331063462,1720051857555,-153.0,0.000146,2]
[331063463,1720051857564,-153.0,0.000146,2]
[331063464,1720051857573,-306.0,0.000146,2]
[331063465,1720051857582,-293.2428115,0.000146,2]
[331063466,1720051857591,-206.0836831,0.000146,2]
[331063467,1720051857601,-153.0,0.000146,2]
[331063468,1720051857611,-206.0836831,0.000146,2]
[331063469,1720051857621,-153.0,0.000146,2]
[331063470,1720051857630,-293.2428115,0.000146,2]
[331063471,1720051857639,-153.0,0.000146,2]
[331063472,1720051857648,-433.6287114,0.000146,2]
[331063473,1720051857657,-154.2932348,0.000146,2]
[331063474,1720051857666,-293.2428115,0.000146,2]
[331063475,1720051857675,-880.721,0.00014607,2]
[331063476,1720051857684,-151.925,0.00014648,2]
[331063477,1720051857693,-150.436,0.00014648,2]
[331063478,1720051857703,-154.457,0.00014648,2]
[331063479,1720051857713,-210.5006285,0.000147,2]
[331063480,1720051857732,-157.9322695,0.000147,2]
[331063481,1720051857742,-153.0,0.000147,2]
[331063482,1720051857751,-153.0,0.000147,2]
[331063483,1720051857762,-293.2428115,0.000147,2]
[331063484,1720051857773,-153.0,0.000147,2]
[331063485,1720051857865,-206.0836831,0.000147,2]
[331063486,1720051857875,-206.0836831,0.000147,2]
[331063487,1720051857884,-153.0,0.000147,2]
[331063488,1720051857894,-293.2428115,0.000147,2]
[331063489,1720051857903,-153.0,0.000147,2]
[331063490,1720051857914,-153.0,0.000147,2]
[331063491,1720051857923,-500.0,0.00014709,2]
[331063492,1720051857933,-500.0,0.00014709,2]
[331063493,1720051857942,-1796.36,0.00014709,2]
[331063494,1720051857951,-500.0,0.00014709,2]
[331063495,1720051857960,-429.73367006,0.00014709,2]
[331063496,1720051857969,-11444.26,0.00014709,2]
[331063497,1720051857980,-1245.1,0.00014709,2]
[331063498,1720051857989,-2282.96,0.00014709,2]
[331063499,1720051857998,-526.39281839,0.00014709,2]
[331063500,1720051858008,-500.0,0.00014709,2]
[331063501,1720051858017,-500.0,0.00014709,2]
[331063502,1720051858026,-500.0,0.00014709,2]
[331063503,1720051858036,-1831.0,0.0001471,2]
[331063504,1720051858047,-1989.98,0.0001471,2]
[331063505,1720051858057,-1145.28,0.0001471,2]
[331063506,1720051858066,-500.0,0.0001471,2]
[331063507,1720051858075,-500.0,0.0001471,2]
[331063508,1720051858084,-786.94,0.0001471,2]
[331063509,1720051858094,-3713.93578708,0.0001471,2]
[331063510,1720052289630,597.61557581,9.999e-05,2]
[331063512,1720052306179,154.83742071,9.999e-05,2]
[331063514,1720052336280,842.54666328,9.999e-05,2]
[331063515,1720052363006,322.01145644,9.999e-05,2]
[331063516,1720052449633,154.86836189,9.999e-05,2]
[331063517,1720052483392,531.888256,9.999e-05,2]
[331063518,1720052484832,155.0,9.999e-05,2]
[331063519,1720052511842,154.86836189,9.999e-05,2]
[331063520,1720052519361,384.42525017,9.999e-05,2]
[331063521,1720052538507,154.83742071,9.999e-05,2]
[331063522,1720052575400,181.9832826,9.999e-05,2]
[331063523,1720052636527,155.35607975,9.999e-05,2]
[331063524,1720052827098,-746.33984813,0.00013284,2]
[331063525,1720052830138,-2607.42025413,0.00013284,2]
[331063526,1720052832103,-202.9,0.00013284,2]
[331063527,1720052835152,-155.75056647,0.00013284,2]
[331063528,1720052847166,-159.62149372,0.00013284,2]
[331063529,1720052852108,-562.02446707,0.00013284,2]
[331063530,1720052853108,-242.19353293,0.00013284,2]
[331063531,1720052945124,-3971.26653225,0.00013284,2]
[331063532,1720052945145,-233.8563631,0.00013287,2]
[331063533,1720052950160,-246.391129,0.00013699,2]
[331063534,1720052950181,-253.608871,0.00014325,2]
[331063535,1720053006387,202.9,9.999e-05,2]
[331063536,1720053006407,193.23710465,9.999e-05,2]
[331063537,1720053006427,128.33470712,9.999e-05,2]
[331063574,1720053038811,-150.0,0.00014152,2]
[331063575,1720053038821,-814.52173636,0.00014325,2]
[331063576,1720053038830,-153.0,0.000144,2]
[331063577,1720053038840,-500.0,0.00014424,2]
[331063578,1720053038850,-500.0,0.00014424,2]
[331063579,1720053038860,-500.0,0.00014424,2]
[331063580,1720053038870,-500.0,0.00014424,2]
[331063581,1720053038880,-501.3251656,0.00014424,2]
[331063582,1720053038890,-2960.76221458,0.00014425,2]
[331063583,1720053038899,-237628.4759771,0.00014425,2]
[331063587,1720053040957,-729.74769971,0.00014425,2]
[331063588,1720053041108,-34776.06959206,0.00014425,2]
[331063590,1720053043546,-19896.94284013,0.00014425,2]
[331063591,1720053043556,-500.0,0.00014426,2]
[331063592,1720053043565,-504.55555756,0.00014426,2]
[331063593,1720053043575,-501.89133462,0.00014426,2]
[331063594,1720053043584,-500.0,0.00014426,2]
[331063595,1720053043593,-500.0,0.00014426,2]
[331063596,1720053043602,-651.2,0.00014426,2]
[331063597,1720053043611,-500.0,0.00014426,2]
[331063598,1720053043620,-1745.58,0.00014426,2]
[331063599,1720053043629,-1920.18,0.00014426,2]
[331063600,1720053043639,-1108.27,0.00014426,2]
[331063601,1720053043648,-500.0,0.00014426,2]
[331063602,1720053043657,-500.0,0.00014426,2]
[331063603,1720053043666,-500.0,0.00014426,2]
[331063604,1720053043675,-500.0,0.00014426,2]
[331063605,1720053043685,-500.0,0.00014426,2]
[331063606,1720053043696,-1753.68,0.00014426,2]
[331063607,1720053043707,-773.47,0.00014426,2]
[331063608,1720053043716,-500.0,0.00014426,2]
[331063609,1720053043726,-3994.74,0.00014426,2]
[331063610,1720053043738,-7788.58,0.00014426,2]
[331063611,1720053043747,-11162.31,0.00014426,2]
[331063612,1720053043756,-1206.56,0.00014426,2]
[331063613,1720053043765,-500.0,0.00014426,2]
[331063614,1720053043774,-500.0,0.00014426,2]
[331063615,1720053043783,-2211.12,0.00014426,2]
[331063616,1720053043793,-500.0,0.00014426,2]
[331063617,1720053043801,-500.0,0.00014426,2]
[331063618,1720053043810,-500.0,0.00014426,2]
[331063619,1720053043820,-49.21715589,0.00014426,2]
[331063638,1720053425192,176.28738677,9.999e-05,2]
[331063714,1720054026134,-1873.6000477,0.00013247,2]
[331063715,1720054026153,-246.39113,0.00013699,2]
[331063716,1720054026172,-17.04051482,0.00013837,2]
[331063717,1720054026221,-180.15948518,0.00013837,2]
[331063718,1720054026241,-927.01545528,0.00014325,2]
[331063719,1720054036252,-202.9,0.00014313,2]
[331063720,1720054039139,-798.41912365,0.00014313,2]
[331063721,1720054039159,-1072.98454472,0.00014325,2]
[331063722,1720054039179,-496.48514475,0.00014412,2]
[331063723,1720054039199,-1486.65732603,0.00014413,2]
[331063724,1720054042107,-150.99909156,0.00014413,2]
[331063725,1720054051357,-1014.08783808,0.00014413,2]
[331063729,1720054221917,223.00977677,0.00014304,2]
[331063779,1720054239068,-653.14445645,0.00014304,2]
[331063780,1720054239078,-212.77934775,0.00014403,2]
[331063781,1720054239088,-500.0,0.00014403,2]
[331063782,1720054239098,-937.29386218,0.00014403,2]
[331063783,1720054239183,-718.49621928,0.00014403,2]
[331063784,1720054239193,-2915.28388769,0.00014404,2]
[331063785,1720054239205,-3792.79999999,0.00014404,2]
[331063794,1720054241035,-23667.18159952,0.00014404,2]
[331063795,1720054241146,-4186.98047367,0.00014404,2]
[331063803,1720054243897,-5024.75855851,0.00014404,2]
[331063804,1720054243910,-9541.69395631,0.00014404,2]
[331063809,1720054246809,-672.2517208,0.00014404,2]
[331063810,1720054246841,-9661.10787274,0.00014404,2]
[331063811,1720054246953,-719.79,0.00014404,2]
[331063812,1720054246965,-746.779422,0.00014404,2]
[331063813,1720054372320,502.72,0.00025,120]
[331063814,1720054409274,500.0,0.00025,120]
[331063815,1720054419936,500.0,0.00025,120]
[331063816,1720054428051,500.0,0.00025,120]
[331063817,1720054456902,352.66315,0.00025,120]
[331063818,1720054622931,164.68030163,9.999e-05,2]
[331063826,1720054951095,320.0,0.00024,60]
[331063832,1720055137088,-191.36968315,0.00014303,2]
[331063840,1720055226167,-884.4404604,0.0001429,2]
[331063841,1720055226187,-154.93837456,0.00014303,2]
[331063842,1720055226208,-150.14022231,0.00014303,2]
[331063843,1720055226228,-300.0,0.00014384,2]
[331063844,1720055226248,-300.0,0.00014384,2]
[331063845,1720055226272,-223.00977677,0.00014384,2]
[331063846,1720055226293,-490.97295568,0.00014384,2]
[331063847,1720055226313,-586.0348236,0.00014385,2]
[331063848,1720055226333,-285.48062928,0.00014385,2]
[331063850,1720055227093,-937.50687397,0.00014385,2]
[331063851,1720055227122,-999.30628323,0.00014385,2]
[331063852,1720055228322,-466.05642928,0.00014385,2]
[331063853,1720055229212,-2831.83646381,0.00014385,2]
[331063856,1720055254263,-151.0,0.00014385,2]
[331063862,1720055361116,-3251.94297031,0.0001439,2]
[331063863,1720055361142,-11162.31,0.00014395,2]
[331063864,1720055361163,-1206.56,0.00014395,2]
[331063865,1720055361184,-2211.12,0.00014395,2]
[331063866,1720055361204,-500.0,0.00014395,2]
[331063867,1720055361224,-644.9,0.00014395,2]
[331063868,1720055361244,-500.0,0.00014395,2]
[331063869,1720055361265,-1672.85,0.00014395,2]
[331063870,1720055361286,-1840.17,0.00014395,2]
[331063871,1720055361305,-1062.09,0.00014395,2]
[331063872,1720055361326,-500.0,0.00014395,2]
[331063873,1720055361346,-500.0,0.00014395,2]
[331063874,1720055361370,-741.24,0.00014395,2]
[331063875,1720055361395,-3828.29,0.00014395,2]
[331063876,1720055361415,-500.0,0.00014395,2]
[331063877,1720055361435,-93.24037451,0.00014395,2]
[331063893,1720055433118,-243.814574,0.00013699,2]
[331063894,1720055433128,-773.88540285,0.000143,2]
[331063895,1720055433138,-68.60226632,0.00014395,2]
[331063896,1720055433248,-316.23475701,0.00014395,2]
[331063924,1720055438125,-21.92260216,0.00014395,2]
[331063925,1720055438134,-1715.71,0.00014395,2]
[331063926,1720055438144,-500.0,0.00014395,2]
[331063927,1720055438153,-298.53745015,0.00014395,2]
[331063928,1720055438166,-201.46254985,0.00014395,2]
[331063929,1720055438176,-500.0,0.00014395,2]
[331063930,1720055438187,-443.41767604,0.00014395,2]
[331063936,1720055440416,-56.58232396,0.00014395,2]
[331063938,1720055440426,-10697.21,0.00014395,2]
[331063940,1720055440438,-500.0,0.00014395,2]
[331063942,1720055440447,-500.0,0.00014395,2]
[331063944,1720055440456,-1204.79,0.00014395,2]
[331063945,1720055440465,-1156.29,0.00014395,2]
[331063947,1720055440475,-703.53,0.00014395,2]
[331063949,1720055440484,-3598.12,0.00014395,2]
[331063950,1720055440493,-2118.99,0.00014395,2]
[331063952,1720055440503,-500.0,0.00014395,2]
[331063953,1720055440513,-500.0,0.00014395,2]
[331063954,1720055440522,-33835.15386988,0.000144,2]
[331064014,1720055446184,-500.0,0.00014395,2]
[331064017,1720055446199,-328.2573917,0.000144,2]
[331064034,1720055446273,-16450.00000025,0.000144,2]
[331064098,1720055792154,318.5612794,9.999e-05,2]
[331064105,1720056331005,-163.1789885,0.00013359,2]
[331064107,1720056394563,155.7,0.00025,120]
[331064109,1720056426104,-506.7290186,0.00013359,2]
[331064110,1720056426124,-55.29544847,0.00013699,2]
[331064111,1720056429447,-159.62149372,0.00013699,2]
[331064112,1720056430104,-28.89763181,0.00013699,2]
[331064113,1720056430124,-213.29590112,0.00014291,2]
[331064114,1720056438143,-477.3817704,0.00014291,2]
[331064115,1720056438163,-300.0,0.0001438,2]
[331064116,1720056438185,-1983.26608484,0.00014381,2]
[331064117,1720056441096,-746.33984813,0.00014381,2]
[331064119,1720056446101,-155.75056647,0.00014381,2]
[331064120,1720056448091,-413.88216367,0.00014381,2]
[331064122,1720056472313,215.33929165,0.000225,30]
[331064129,1720056552278,-246.391129,0.00013699,2]
[331064180,1720056632568,-300.0,0.00014372,2]
[331064182,1720056632579,-1302.0,0.00014372,2]
[331064224,1720056634989,253.608871,0.00014289,2]
[331064225,1720056637665,210.98216367,9.999e-05,2]
[331064226,1720056637685,187.04255408,9.999e-05,2]
[331064227,1720056637715,127.68954943,9.999e-05,2]
[331064236,1720056638753,-353.20881517,0.00014289,2]
[331064237,1720056638763,-29.28777919,0.00014372,2]
[331064244,1720056640986,-24626.31918591,0.00014372,2]
[331064245,1720056640996,-7502.1734186,0.00014381,2]
[331064246,1720056641006,-217.5174118,0.00014389,2]
[331064247,1720056641016,-9823.85597297,0.00014389,2]
[331064413,1720056646928,-1429.40415493,0.00014389,2]
[331064416,1720056646938,-500.0,0.00014389,2]
[331064419,1720056646947,-382.19613237,0.00014389,2]
[331064423,1720056646963,-117.80386763,0.00014389,2]
[331064426,1720056646972,-500.99476073,0.00014389,2]
[331064429,1720056646985,-144.17523927,0.00014389,2]
[331064432,1720056646994,-500.0,0.00014389,2]
[331064435,1720056647003,-500.0,0.00014389,2]
[331064437,1720056647012,-1675.88,0.00014389,2]
[331064439,1720056647021,-1843.51,0.00014389,2]
[331064441,1720056647031,-1064.02,0.00014389,2]
[331064443,1720056647040,-500.0,0.00014389,2]
[331064445,1720056647049,-500.0,0.00014389,2]
[331064447,1720056647059,-742.58,0.00014389,2]
[331064449,1720056647068,-500.0,0.00014389,2]
[331064451,1720056647078,-500.0,0.00014389,2]
[331064453,1720056647087,-3835.22,0.00014389,2]
[331064455,1720056647096,-1717.29,0.00014389,2]
[331064457,1720056647106,-500.0,0.00014389,2]